Cogmind - Beta 10.2 @@@ ROGUE MODE // 2021.11.26 @ 20:14:27 Player: BigP Result: Self-destructed Performance ------------- Evolutions (2) 1000 Regions Visited (3) 600 Robots Destroyed (6) 30 Value Destroyed (142) 142 Prototype IDs (1) 20 Alien Tech Used (0) 0 Bonus (0) 0 TOTAL SCORE: 1792 Bonus ------- None Cogmind --------- Core Integrity 64/550 Matter 265/300 Energy 100/100 System Corruption 0% Temperature Cool (0) Movement Core (300) Ox5 Location -8/Materials Parts ------- > --- POWER (1) -------- (None) > --- PROPULSION (4) --- (None) > --- UTILITY (4) ------ Medium Storage Unit Medium Storage Unit > --- WEAPON (2) ------- (None) > --- INVENTORY (12) --- Large Storage Unit Peak State ------------ > --- POWER ------------ Light Ion Engine > --- PROPULSION ------- Wheel Compact Wheel Compact Wheel > --- UTILITY ---------- Small Storage Unit Medium Storage Unit > --- WEAPON ----------- Improved EM Shotgun Assault Rifle > --- INVENTORY -------- (None) [Rating: 10] Favorites ----------- Power Light Ion Engine Engine Light Ion Engine Propulsion Compact Wheel Wheel Compact Wheel Utility Small Storage Unit Storage Small Storage Unit Weapon Assault Rifle Energy Gun Improved EM Shotgun Ballistic Gun Assault Rifle Build | -11 -10 -9 -8 ------- Run | Scr Mat Mat Mat Slots Evolved 4 | . . 2 2 Power . | . . . . Propulsion 2 | . . 1 1 Utility 2 | . . 1 1 Weapon . | . . . . Parts Attached 12 | 6 2 4 . Power 1 | 1 . . . Engine 1 | 1 . . . Core . | . . . . Reactor . | . . . . Propulsion 4 | 2 . 2 . Treads . | . . . . Leg . | . . . . Wheel 4 | 2 . 2 . Hover . | . . . . Flight . | . . . . Utility 3 | 1 . 2 . Device . | . . . . Storage 3 | 1 . 2 . Processor . | . . . . Hackware . | . . . . Protection . | . . . . Artifact . | . . . . Weapon 4 | 2 2 . . Energy Gun 2 | . 2 . . Energy Cannon . | . . . . Ballistic Gun 2 | 2 . . . Ballistic Cannon . | . . . . Launcher . | . . . . Special Weapon . | . . . . Impact Weapon . | . . . . Slashing Weapon . | . . . . Piercing Weapon . | . . . . Special Melee Weapon . | . . . . Unidentified Prototypes 1 | . 1 . . Parts Lost 6 | . . . 6 Power 1 | . . . 1 Propulsion 3 | . . . 3 Utility . | . . . . Weapon 2 | . . . 2 Highest Loss Streak 4 | . . . 4 Average Slot Usage (%) 73 | . 85 80 41 Engine 10 | . 14 11 1 Wheel 26 | . 28 33 14 Storage 15 | . 14 14 18 Energy Gun 8 | . 10 11 2 Ballistic Gun 12 | . 17 11 4 Naked Turns . | . . . . Heaviest Build 24 | 10 12 24 24 Greatest Support 42 | 32 32 42 42 Greatest Overweight (x) 5 | . . . 5 Average Overweight (x) . | . . . . Largest Inventory Capacity 12 | 6 6 12 12 Average Capacity 7 | 5 6 7 12 Most Carried 2 | 2 2 1 1 Average Carried . | . . . 1 Final Capacity 12 | 6 6 12 12 Final Carried 1 | . 1 1 1 Class Distribution -------------------- 100% | Mutant Dominant Class ---------------- Mutant | -10/Materials Mutant | -9/Materials Mutant | -8/Materials Resources | -11 -10 -9 -8 ----------- Run | Scr Mat Mat Mat Matter Collected 270 | 246 24 . . Remotely . | . . . . Salvage Created 138 | . 138 . . Parts 9 | . 9 . . Haulers Intercepted . | . . . . Recyclers Shooed . | . . . . Parts Field Recycled . | . . . . Retrieved Matter . | . . . . Parts Self-Destructed . | . . . . Prevented . | . . . . Kills | -11 -10 -9 -8 ------- Run | Scr Mat Mat Mat Combat Hostiles Destroyed 5 | . 5 . . AOE 5 | . 5 . . Classes Destroyed 3 | . 3 . . Worker 1 | . 1 . . Swarmer 3 | . 3 . . Grunt 2 | . 2 . . Best Kill Streak 5 | . 5 . . Combat Bots Only 5 | . 5 . . Max Kills in Single Turn 5 | . 5 . . Gunslinging . | . . . . Exploded 5 | . 5 . . Melee . | . . . . Uniques/NPCs Destroyed . | . . . . Combat | -11 -10 -9 -8 -------- Run | Scr Mat Mat Mat Damage Taken 1146 | . 134 14 998 Core 514 | . 14 14 486 Absorbed by Shields . | . . . . Core Remaining (%) 96 | 100 94 96 . Volleys Fired 7 | . 6 . 1 Largest 2 | . 2 . 1 Hottest 65 | . 65 . 20 Shots Fired 13 | . 12 . 1 Gun 13 | . 12 . 1 Cannon . | . . . . Launcher . | . . . . Special . | . . . . Kinetic 7 | . 6 . 1 Thermal . | . . . . Explosive . | . . . . Electromagnetic 6 | . 6 . . Robot Hit Streak 4 | . 4 . . Robot Miss Streak 6 | . 6 . 1 Penetration Max . | . . . . Secondary Targets . | . . . . Shots Hit Robots 7 | . 7 . . Core Hits 7 | . 7 . . Critical Hits . | . . . . Critical Kills . | . . . . Critical Parts Destroyed . | . . . . Melee Attacks . | . . . . Impact . | . . . . Slashing . | . . . . Piercing . | . . . . Sneak Attacks . | . . . . Combat Hostiles . | . . . . Follow-up Attacks . | . . . . Damage Inflicted 304 | . 302 . 2 Guns 68 | . 68 . . Cannons . | . . . . Explosions 234 | . 234 . . Melee . | . . . . Ramming 2 | . . . 2 Kinetic 26 | . 26 . . Thermal 136 | . 136 . . Explosive . | . . . . Electromagnetic 140 | . 140 . . Impact . | . . . . Slashing . | . . . . Piercing . | . . . . Highest Corruption . | . . . . Average Corruption . | . . . . Corruption Purged . | . . . . Overload Shots . | . . . . Overflow Damage . | . . . . Projectiles . | . . . . Explosions . | . . . . Melee . | . . . . Knockbacks . | . . . . Impact . | . . . . Kinetic . | . . . . Secondary . | . . . . Self-Inflicted Damage 64 | . 64 . . Shots 2 | . 2 . . Rammed 2 | . . . 2 Targets Rammed 2 | . . . 2 Kicked . | . . . . Crushed . | . . . . Highest Temperature 401 | . 401 . . Average Temperature 108 | . 108 . . Received Heat Transfer 153 | . . 9 144 Siege Activations . | . . . . Robots Corrupted . | . . . . Combat Hostiles . | . . . . Parts Fried . | . . . . Impact Corruptions . | . . . . Robots Melted . | . . . . Combat Hostiles . | . . . . Parts Melted . | . . . . Heat Transferred 150 | . 150 . . Parts Sabotaged . | . . . . Parts Stolen . | . . . . Parts Stripped . | . . . . Power Chain Reactions 2 | . 2 . . Missiles Intercepted . | . . . . Alert | -11 -10 -9 -8 ------- Run | Scr Mat Mat Mat Peak Influence 170 | . 170 93 144 Initial 71 | . . 71 39 Average 61 | . 45 84 90 Maximum Alert Level . | . . . . Low Security (%) 100 | 100 100 100 100 Level 1 . | . . . . Level 2 . | . . . . Level 3 . | . . . . Level 4 . | . . . . Level 5 . | . . . . High Security . | . . . . Max Security . | . . . . Squads Dispatched 3 | . 1 . 2 Investigation 1 | . 1 . . Extermination . | . . . . Reinforcement 2 | . . . 2 Assault . | . . . . Garrison . | . . . . Intercept . | . . . . Construction Impeded . | . . . . Haulers Reinforced . | . . . . Stealth | -11 -10 -9 -8 --------- Run | Scr Mat Mat Mat Distress Signals 2 | . . . 2 Communications Jammed . | . . . . Distress Signals . | . . . . Times Spotted 30 | . 6 2 22 Peak Tracking Total 13 | . 5 2 13 Tactical Retreats 4 | . . . 4 Traps | -11 -10 -9 -8 ------- Run | Scr Mat Mat Mat Traps Triggered 1 | . 1 . . Indirectly 1 | . 1 . . Trap Hack Attempts . | . . . . Triggered . | . . . . Disarmed . | . . . . Reprogrammed . | . . . . Reused . | . . . . Traps Extracted . | . . . . Installed . | . . . . Triggered . | . . . . Machines | -11 -10 -9 -8 ---------- Run | Scr Mat Mat Mat Machines Disabled 3 | . 3 . . Max in Single Turn 3 | . 3 . . Machines Sabotaged . | . . . . Garrisons Compromised . | . . . . Overloaded Fab Kills . | . . . . Fab Network Shutdowns . | . . . . Hacking | -11 -10 -9 -8 --------- Run | Scr Mat Mat Mat Machines Accessed 1 | . . 1 . Terminals 1 | . . 1 . Fabricators . | . . . . Repair Stations . | . . . . Recycling Units . | . . . . Scanalyzers . | . . . . Garrison Access . | . . . . Total Hacks 1 | . . 1 . Successful 1 | . . 1 . Failed . | . . . . Catastrophic . | . . . . Database Lockouts . | . . . . Manual . | . . . . Terminals 1 | . . 1 . Fabricators . | . . . . Repair Stations . | . . . . Recycling Units . | . . . . Scanalyzers . | . . . . Garrison Access . | . . . . Terminal Hacks 1 | . . 1 . Registered Components 1 | . . 1 . Fabricator Hacks . | . . . . Repair Station Hacks . | . . . . Recycling Unit Hacks . | . . . . Scanalyzer . | . . . . Garrison Access Hacks . | . . . . Unauthorized Hacks . | . . . . Terminals . | . . . . Fabricators . | . . . . Repair Stations . | . . . . Recycling Units . | . . . . Scanalyzers . | . . . . Garrison Access . | . . . . Data Cores Recovered . | . . . . Used . | . . . . Hacking Detections . | . . . . Full Trace Events . | . . . . Feedback Events . | . . . . Feedback Blocked . | . . . . Robot Schematics Acquired . | . . . . Robots Built . | . . . . Matter . | . . . . Time . | . . . . Total Robot Build Rating . | . . . . Part Schematics Acquired . | . . . . Parts Built . | . . . . Matter . | . . . . Time . | . . . . Total Part Build Rating . | . . . . Parts Repaired . | . . . . Time . | . . . . Parts Recycled . | . . . . Recycled Matter . | . . . . Retrieved Matter . | . . . . Retrieved Components . | . . . . Parts Scanalyzed . | . . . . Part Schematics Acquired . | . . . . Parts Damaged . | . . . . Bothacking | -11 -10 -9 -8 ------------ Run | Scr Mat Mat Mat Used RIF Installer . | . . . . Robots Hacked . | . . . . Non-combat . | . . . . Combat . | . . . . Robot Hacks Applied . | . . . . Relay Couplers Released . | . . . . Robots Rewired . | . . . . Allies Hacked . | . . . . Hacks Repelled . | . . . . Allies | -11 -10 -9 -8 -------- Run | Scr Mat Mat Mat Total Allies . | . . . . Largest Group . | . . . . Highest-Rated Group . | . . . . Highest-Rated Ally . | . . . . Total Orders . | . . . . Ally Attacks . | . . . . Total Damage . | . . . . Kills . | . . . . Allies Corrupted . | . . . . Allies Melted . | . . . . Intel | -11 -10 -9 -8 ------- Run | Scr Mat Mat Mat Robot Analysis Total . | . . . . Derelict Logs Recovered . | . . . . Drone Launches . | . . . . Drone Recoveries . | . . . . Exploration | -11 -10 -9 -8 ------------- Run | Scr Mat Mat Mat Turns Passed 504 | 46 220 126 112 Spaces Moved 427 | 37 183 127 80 Core 18 | 4 . . 14 Treads . | . . . . Legs . | . . . . Wheels 409 | 33 183 127 66 Hover . | . . . . Flight . | . . . . Fastest Speed 50 | 50 100 93 93 Average Speed 102 | 94 100 93 129 Slowest Speed 300 | 100 100 93 300 Overloaded Moves . | . . . . Propulsion Burnouts . | . . . . Robots Hopped . | . . . . Cave-ins Triggered . | . . . . Exploration Rate (%) 14 | 4 27 17 11 Regions Visited 3 Branch Regions . Pre-discovered Areas . | . . . . Known Exits Taken . | . . . . Unknown Exits Taken 3 | 1 1 1 . Scrap Searched . | . . . . Spaces Dug . | . . . . Terrain Destroyed 3 | . 3 . . Melee . | . . . . Projectile . | . . . . AOE 3 | . 3 . . Terrain Rammed . | . . . . Walls Destroyed . | . . . . Machines Disabled . | . . . . Actions | -11 -10 -9 -8 --------- Run | Scr Mat Mat Mat Total 474 | 48 208 135 83 Wait 13 | . 13 . . Move 424 | 36 182 126 80 Hop . | . . . . Pick Up 12 | 6 3 3 . Fast Attach . | . . . . Attach 11 | 6 1 4 . Detach 1 | . . 1 . Swap 1 | . 1 . . Drop 3 | . 2 1 . Fire 7 | . 6 . 1 Melee . | . . . . Ram 2 | . . . 2 Kick . | . . . . Crush . | . . . . Escape Stasis . | . . . . Rewire . | . . . . Trap . | . . . . Miscellaneous . | . . . . Route ------- -11/Scrapyard -10/Materials -9/Materials (discovered 2 exits: [*Mat] / [*Sto]) -8/Materials History --------- Turn | Location | Event 27 | -11/Scrapyard | Discovered new exit (range 15) 47 | -11/Scrapyard | Entered Materials 126 | -10/Materials | Discovered new exit (range 16) 267 | -10/Materials | Entered another Materials area 267 | -9/Materials | Evolved 2 slots: Propulsion x1, Utility x1 282 | -9/Materials | Discovered new exit (range 16) 309 | -9/Materials | Build established: Mutant 389 | -9/Materials | Discovered new exit (range 4) 393 | -9/Materials | Entered another Materials area 393 | -8/Materials | Evolved 2 slots: Propulsion x1, Utility x1 484 | -8/Materials | Core integrity fell below 50% 489 | -8/Materials | Lost 4 parts (3n1w) 496 | -8/Materials | Core integrity fell below 20% 505 | -8/Materials | Self-destructed Last Messages --------------- M004. 00447_ W-25 Informer sends out distress signal. 00451_ K-01 Serf collects debris. 00455_ O-16 Technician uses terminal to summon reinforcements. 00455_ ALERT: Hostiles spotted, dispatching reinforcements to Terminal M007. 00455_ O-16 Technician locks terminal. 00456_ Com. Wheel destroyed. 00456_ Wheel destroyed. 00457_ Com. Wheel destroyed. 00458_ Assault Rifle destroyed. 00464_ S-10 Pest destroyed. 00464_ K-01 Serf collects debris. 00471_ W-25 Informer sends out distress signal. 00478_ Slammed into W-25 Informer. 00481_ Destabilizing: Core damaged (-27). 00482_ S-10 Pest destroyed. 00485_ K-01 Serf collects debris. 00493_ S-10 Pest destroyed. 00494_ K-01 Serf collects debris. Map ----- +----------------------------------------------------+ | | | | | | | | | | | | | | | | | | | | | | | | | | | | | | | | | | | | | ??????????????????##########????????????????? | | ?????????????????# #????????????????? | | ?????????????????# """ #????????????????? | | ?????????????????# """ !!% #????????????????? | | ?????????????????#w""" !! #????????????????? | | ?????????????????# !! #????????????????? | | ?????????????????# ! #????????????????? | | ?????????????????# @ #????????????????? | | ?????????????????# s #????????????????? | | ?????????????????#####Y#####????????????????? | | ????????????????????# g#???###??????????????? | | ????????????????????#*%#?? ??????????????? | | ????????????????????# #??""""??????????????? | | ????????????????????# #? """"??????????????? | | ????????????????????# #? """"??????????????? | | ????????????????????# =# """""?????????????? | | ????????????????????#=%# """"""" ?????????? | | ????????????????????# + /#????????? | | ????????????????????# ##########???????????? | | ????????# ######## [##### #???????????? | | ????????? " % #???????????? | | ??????????"T T #???????????? | | ????????# ###/########### #???????????? | | ????????#??????????????????## ##???????????? | | ????????????????????????????# #????????????? | | ?????????#??????????????????# #????????????? | | ?????????# ?????????????????# #????????????? | | ????????## ????????????????# #????????????? | | ????????# ################ ###??????????? | | ????????+ #??????????? | | ????????# +??????????? | | ????????# ### ############## #??????????? | +----------------------------------------------------+ Best States ------------- Heat Dissipation 31 Energy Generation 10 Energy Capacity 125 Matter Stores 287 Matter Capacity 300 Sight Range 16 Terrain Scan Density 10 Evasion (%) 41 Item Schematics ----------------- None Robot Schematics ------------------ None Fabricated ------------ Nothing Alien Tech Used ----------------- None Achievements -------------- Quick And Dirty Challenges ------------ None Game ------ Seed OpticalFortressNanovents Manual? 0 Play Time 00:07:38 Cumulative 4.9 hours Start 2021.11.26 @ 20:07:58 End 2021.11.26 @ 20:14:27 Sessions 1 Manual Loads 0 Difficulty Rogue Special Mode None Game No. 8 Rogue 8 Adventurer 0 Explorer 0 Win Type - Total 0 Types 0/0/0/0/0/0/0/0/0 Lore% 5 Gallery% 10 Achievement% 9 Wizard Run 0 Options --------- ASCII 0 Keyboard 0 Movement Mouse Keybinds 0 Fullscreen 2 Font 24/Smallcaps Map View 76x50 Tactical HUD 1 Map Filters NONE Filters NONE Steam 1 RUN: 7e5ee0a8-1c9f-49e4-a9ca-4cc22709e6cb